fUSD/lending_fUSD_20250422
["ID","MTS","AMOUNT","RATE_DAILY","PERIOD"]
[358587807,1745291009253,500.0,0.00047695,120]
[358587808,1745291009526,500.0,0.00047695,120]
[358587809,1745291009841,500.0,0.00047695,120]
[358587811,1745291343405,155.00607448,0.00042017,30]
[358587812,1745291347576,180.53459144,0.00042017,30]
[358587813,1745291349528,180.10434149,0.00042017,30]
[358587814,1745291416242,709.1943865,0.00042,120]
[358587817,1745291432401,-344.588478,0.00019899,2]
[358587818,1745291432413,-205.411522,0.00019899,2]
[358587819,1745291432426,-94.588478,0.00019899,2]
[358587820,1745291432439,-205.411522,0.00019899,2]
[358587821,1745291432450,-134.03824273,0.000199,2]
[358587822,1745291437021,-489.38511936,0.000199,2]
[358587823,1745291437178,-350.0,0.000199,2]
[358588114,1745291440781,-32069.75191275,0.000199,2]
[358588115,1745291440793,-420.0,0.0002167,2]
[358588116,1745291440803,-250.0,0.0002189,2]
[358588118,1745291440812,-250.0,0.00023512,2]
[358588119,1745291440821,-587.0,0.00023599,2]
[358588121,1745291440830,-823.0,0.00025699,2]
[358588123,1745291440840,-250.0,0.00028838,2]
[358588125,1745291440849,-204.28067349,0.000291,8]
[358588127,1745291440858,-204.28067335,0.000291,8]
[358588129,1745291440867,-204.28067335,0.000291,8]
[358588131,1745291440877,-204.28067335,0.00031114,9]
[358588133,1745291440886,-338.7707963,0.000315,2]
[358588135,1745291440895,-189.082,0.00032117,2]
[358588137,1745291440904,-164.784,0.00032117,2]
[358588138,1745291440913,-150.738,0.00032117,2]
[358588140,1745291440922,-150.337,0.00032117,2]
[358588142,1745291440931,-8808.83,0.00032117,2]
[358588144,1745291440941,-500.0,0.00033157,5]
[358588146,1745291440950,-204.28067335,0.00034186,11]
[358588148,1745291440959,-150.0,0.00034717,2]
[358588150,1745291440968,-992.055,0.00034717,2]
[358588151,1745291440977,-1333.0,0.00034717,2]
[358588152,1745291440987,-2057.0,0.00034717,2]
[358588153,1745291440996,-800.999,0.00034717,2]
[358588154,1745291441005,-1284.0,0.00034717,2]
[358588155,1745291441014,-909.0,0.00034717,2]
[358588156,1745291441023,-1443.0,0.00034717,2]
[358588157,1745291441032,-547.0,0.00034717,2]
[358588158,1745291441041,-4164.0,0.00034717,2]
[358588159,1745291441051,-577.0,0.00034717,2]
[358588160,1745291441061,-294.481,0.00034717,2]
[358588161,1745291441071,-161.519,0.00034717,2]
[358588162,1745291441080,-601.81290088,0.000348,2]
[358588163,1745291441088,-150.0,0.00035117,2]
[358588164,1745291441097,-204.28067335,0.00037257,13]
[358588165,1745291441107,-2500.0,0.00037617,2]
[358588166,1745291441116,-916.0,0.00037717,2]
[358588167,1745291441126,-1333.0,0.00037717,2]
[358588168,1745291441135,-2057.0,0.00037717,2]
[358588169,1745291441144,-795.0,0.00037717,2]
[358588170,1745291441153,-1284.0,0.00037717,2]
[358588171,1745291441163,-909.0,0.00037717,2]
[358588172,1745291441172,-1443.0,0.00037717,2]
[358588174,1745291441183,-547.0,0.00037717,2]
[358588176,1745291441192,-3633.943,0.00037717,2]
[358588178,1745291441201,-577.0,0.00037717,2]
[358588180,1745291441211,-152.0,0.00037717,2]
[358588182,1745291441220,-505.73416239,0.00038637,5]
[358588184,1745291441230,-500.0,0.00039644,2]
[358588186,1745291441239,-152.0,0.00039704,3]
[358588188,1745291441249,-204.28067335,0.00040329,15]
[358588189,1745291441259,-916.0,0.00040717,2]
[358588192,1745291441268,-726.666,0.00040717,2]
[358588194,1745291441278,-2057.0,0.00040717,2]
[358588196,1745291441288,-795.0,0.00040717,2]
[358588198,1745291441298,-1284.0,0.00040717,2]
[358588200,1745291441307,-909.0,0.00040717,2]
[358588202,1745291441316,-1443.0,0.00040717,2]
[358588203,1745291441325,-547.0,0.00040717,2]
[358588205,1745291441335,-577.0,0.00040717,2]
[358588207,1745291441345,-152.0,0.00040717,2]
[358588209,1745291441355,-152.0,0.0004117,4]
[358588212,1745291441365,-3072.17,0.0004147,2]
[358588214,1745291441375,-250.0,0.00041503,2]
[358588216,1745291441386,-154.44,0.00041624,2]
[358588217,1745291441396,-151.74,0.00041917,2]
[358588219,1745291441406,-239.84,0.00042027,2]
[358588221,1745291441416,-250.0,0.00042046,7]
[358588223,1745291441426,-1000.0,0.00042348,2]
[358588225,1745291441437,-152.0,0.00042636,5]
[358588227,1745291441446,-182.88,0.00042653,2]
[358588229,1745291441456,-23900.0,0.0004282,2]
[358588231,1745291441466,-154.44,0.00043032,2]
[358588233,1745291441477,-2466.96,0.00043151,2]
[358588236,1745291441490,-802.34,0.00043262,2]
[358588238,1745291441503,-204.28067335,0.000434,17]
[358588239,1745291441512,-167.27,0.00043511,2]
[358588241,1745291441522,-844.78623919,0.00043526,2]
[358588243,1745291441531,-844.78623919,0.00043611,2]
[358588245,1745291441541,-916.0,0.00043717,2]
[358588247,1745291441550,-975.082,0.00043717,2]
[358588249,1745291441560,-795.0,0.00043717,2]
[358588251,1745291441569,-1118.279,0.00043717,2]
[358588253,1745291441579,-909.0,0.00043717,2]
[358588255,1745291441588,-1443.0,0.00043717,2]
[358588257,1745291441597,-547.0,0.00043717,2]
[358588259,1745291441607,-577.0,0.00043717,2]
[358588260,1745291441617,-152.0,0.00043717,2]
[358588261,1745291441626,-844.78623919,0.00043975,2]
[358588262,1745291441635,-152.0,0.00044102,6]
[358588263,1745291441645,-844.78623919,0.00044214,2]
[358588264,1745291441654,-466.41,0.00044296,2]
[358588265,1745291441663,-502.07,0.00044329,2]
[358588266,1745291441673,-154.44,0.00044441,2]
[358588267,1745291441682,-844.78623919,0.00044511,2]
[358588268,1745291441692,-151.74,0.00044536,2]
[358588269,1745291441701,-844.78623919,0.00044833,2]
[358588270,1745291441710,-500.0,0.0004489,3]
[358588271,1745291441720,-185.64613362,0.00045,2]
[358588272,1745291441729,-171.0,0.00045,90]
[358588273,1745291441738,-844.78623919,0.00045074,2]
[358588274,1745291441747,-3485.6179351,0.00045325,4]
[358588275,1745291441757,-844.78623919,0.00045406,2]
[358588276,1745291441766,-239.84,0.00045452,2]
[358588277,1745291441776,-152.0,0.00045568,7]
[358588278,1745291441785,-844.7862392,0.00045596,2]
[358588279,1745291441798,-4722.29393067,0.000458,15]
[358588280,1745291441808,-154.44,0.00045849,2]
[358588281,1745291441818,-632.4404279,0.00045873,10]
[358588282,1745291441827,-500.0,0.00045873,10]
[358588283,1745291441837,-500.0,0.00045873,10]
[358588284,1745291441847,-177.11669061,0.00045873,7]
[358588285,1745291441856,-213.0,0.000459,2]
[358588286,1745291441868,-147265.7157,0.000459,2]
[358588287,1745291441878,-303.2999,0.000459,2]
[358588288,1745291441887,-23707.4076568,0.0004599,3]
[358588289,1745291441896,-204.50547962,0.00046,2]
[358588290,1745291441907,-3890.53521073,0.00046,120]
[358588291,1745291441916,-3517.9205944,0.00046,30]
[358588292,1745291441926,-281.37,0.00046051,2]
[358588293,1745291441938,-500.0,0.00046179,7]
[358588294,1745291441948,-150.0,0.00046179,7]
[358588295,1745291441957,-150.0,0.00046179,7]
[358588296,1745291441970,-150.0,0.00046179,2]
[358588297,1745291441979,-206.50217652,0.00046179,7]
[358588298,1745291441989,-3078.13,0.000462,2]
[358588299,1745291441998,-615.62,0.000462,2]
[358588300,1745291442008,-204.28067335,0.00046471,19]
[358588301,1745291442017,-150.0,0.00046511,2]
[358588302,1745291442026,-466.41,0.00046511,2]
[358588303,1745291442035,-150.0,0.00046575,2]
[358588304,1745291442045,-916.0,0.00046717,2]
[358588305,1745291442054,-795.0,0.00046717,2]
[358588306,1745291442064,-909.0,0.00046717,2]
[358588307,1745291442073,-898.236,0.00046717,2]
[358588308,1745291442083,-547.0,0.00046717,2]
[358588309,1745291442093,-577.0,0.00046717,2]
[358588310,1745291442102,-168.539986,0.00046746,120]
[358588311,1745291442112,-1482.38,0.00046752,2]
[358588312,1745291442121,-3000.0,0.000468,2]
[358588313,1745291442130,-2837.12730655,0.000468,2]
[358588319,1745291444867,-162.87269345,0.000468,2]
[358588320,1745291444876,-1241.28305613,0.000468,2]
[358588323,1745291446201,-471.7587936,0.000468,2]
[358588324,1745291446521,-1286.95815027,0.000468,2]
[358588325,1745291446530,-1334.99,0.000468,2]
[358588326,1745291446539,-316.02,0.000468,2]
[358588327,1745291446548,-321.61,0.000468,2]
[358588328,1745291446558,-4722.29393066,0.0004691,15]
[358588329,1745291446567,-900.0,0.00047,2]
[358588331,1745291446576,-8490.37326714,0.00047,5]
[358588332,1745291446586,-23707.4076568,0.00047004,3]
[358588334,1745291446595,-152.0,0.00047034,8]
[358588336,1745291446604,-167.27,0.00047102,2]
[358588338,1745291446613,-193.5812681,0.00047123,120]
[358588340,1745291446623,-500.0,0.00047123,120]
[358588342,1745291446632,-500.0,0.00047123,120]
[358588344,1745291446642,-500.0,0.00047123,120]
[358588346,1745291446652,-151.74,0.00047156,2]
[358588348,1745291446661,-4812.98561853,0.00047234,2]
[358588350,1745291446671,-154.44,0.00047257,2]
[358588352,1745291446680,-238.25518535,0.00047477,7]
[358588354,1745291446690,-150.0,0.00047487,7]
[358588356,1745291446699,-151.0,0.00047502,30]
[358588358,1745291446708,-616.85830698,0.00047549,7]
[358588360,1745291446718,-150.0,0.00047549,7]
[358588362,1745291446727,-208.54151456,0.00047549,7]
[358588364,1745291446736,-1334.3551298,0.00047558,19]
[358588366,1745291446746,-5000.0,0.0004759,120]
[358588368,1745291446755,-165.4343133,0.00047641,28]
[358588370,1745291446764,-1000.0,0.00047642,2]
[358588372,1745291446773,-150.0,0.0004765,7]
[358588374,1745291446782,-3010.19,0.00047654,7]
[358588376,1745291446795,-150.0,0.00047658,7]
[358588379,1745291446805,-23707.4076568,0.0004766,3]
[358588381,1745291446814,-553.7935124,0.0004767,3]
[358588383,1745291446823,-771.03650375,0.0004767,3]
[358588386,1745291446832,-500.0,0.0004767,3]
[358588389,1745291446843,-500.0,0.0004767,3]
[358588392,1745291446852,-700.0,0.0004767,3]
[358588393,1745291446861,-23707.4076568,0.0004767,3]
[358588396,1745291446873,-151.87,0.0004767,2]
[358588398,1745291446882,-500.0,0.00047671,120]
[358588400,1745291446891,-150.0,0.00047671,120]
[358588402,1745291446900,-150.0,0.00047671,120]
[358588404,1745291446909,-500.0,0.00047671,120]
[358588406,1745291446918,-500.0,0.00047671,120]
[358588408,1745291446928,-205.89074331,0.00047671,120]
[358588410,1745291446937,-500.0,0.00047671,120]
[358588412,1745291446947,-500.0,0.00047671,120]
[358588414,1745291446955,-500.0,0.00047671,120]
[358588415,1745291446964,-500.0,0.00047671,120]
[358588417,1745291446974,-500.0,0.00047671,120]
[358588419,1745291446983,-500.0,0.00047671,120]
[358588421,1745291446992,-500.0,0.00047671,120]
[358588423,1745291447002,-500.0,0.00047671,120]
[358588425,1745291447011,-500.0,0.00047671,120]
[358588427,1745291447021,-500.0,0.00047671,120]
[358588429,1745291447029,-500.0,0.00047671,120]
[358588431,1745291447039,-500.0,0.00047671,120]
[358588433,1745291447048,-500.0,0.00047671,120]
[358588435,1745291447058,-500.0,0.00047671,120]
[358588437,1745291447067,-500.0,0.00047671,120]
[358588439,1745291447076,-500.0,0.00047671,120]
[358588441,1745291447086,-500.0,0.00047671,120]
[358588443,1745291447095,-500.0,0.00047671,120]
[358588445,1745291447105,-500.0,0.00047671,120]
[358588447,1745291447114,-500.0,0.00047671,120]
[358588449,1745291447123,-500.0,0.00047671,120]
[358588451,1745291447133,-500.0,0.00047671,120]
[358588453,1745291447142,-500.0,0.00047671,120]
[358588454,1745291447151,-500.0,0.00047671,120]
[358588456,1745291447161,-500.0,0.00047671,120]
[358588458,1745291447170,-500.0,0.00047671,120]
[358588460,1745291447180,-500.0,0.00047671,120]
[358588462,1745291447191,-500.0,0.00047671,120]
[358588464,1745291447200,-500.0,0.00047671,120]
[358588466,1745291447209,-500.0,0.00047671,120]
[358588468,1745291447218,-500.0,0.00047671,120]
[358588470,1745291447228,-500.0,0.00047671,120]
[358588472,1745291447237,-500.0,0.00047671,120]
[358588474,1745291447246,-500.0,0.00047671,120]
[358588476,1745291447255,-500.0,0.00047671,120]
[358588478,1745291447265,-500.0,0.00047671,120]
[358588480,1745291447274,-500.0,0.00047671,120]
[358588482,1745291447283,-500.0,0.00047671,120]
[358588484,1745291447292,-500.0,0.00047671,120]
[358588486,1745291447301,-500.0,0.00047671,120]
[358588488,1745291447310,-500.0,0.00047671,120]
[358588490,1745291447319,-500.0,0.00047671,120]
[358588492,1745291447329,-500.0,0.00047671,120]
[358588494,1745291447339,-500.0,0.00047671,120]
[358588496,1745291447349,-500.0,0.00047671,120]
[358588498,1745291447359,-500.0,0.00047671,120]
[358588500,1745291447368,-500.0,0.00047671,120]
[358588502,1745291447377,-500.0,0.00047671,120]
[358588504,1745291447387,-500.0,0.00047671,120]
[358588506,1745291447396,-500.0,0.00047671,120]
[358588508,1745291447405,-500.0,0.00047671,120]
[358588510,1745291447415,-500.0,0.00047671,120]
[358588512,1745291447425,-500.0,0.00047671,120]
[358588514,1745291447435,-500.0,0.00047671,120]
[358588516,1745291447444,-500.0,0.00047671,120]
[358588518,1745291447454,-500.0,0.00047671,120]
[358588520,1745291447463,-500.0,0.00047671,120]
[358588522,1745291447472,-500.0,0.00047671,120]
[358588524,1745291447482,-500.0,0.00047671,120]
[358588526,1745291447491,-500.0,0.00047671,120]
[358588528,1745291447500,-500.0,0.00047671,120]
[358588530,1745291447509,-500.0,0.00047671,120]
[358588532,1745291447518,-500.0,0.00047671,120]
[358588534,1745291447528,-500.0,0.00047671,120]
[358588536,1745291447538,-500.0,0.00047671,120]
[358588538,1745291447547,-500.0,0.00047671,120]
[358588539,1745291447557,-500.0,0.00047671,120]
[358588541,1745291447567,-500.0,0.00047671,120]
[358588543,1745291447576,-500.0,0.00047671,120]
[358588545,1745291447585,-500.0,0.00047671,120]
[358588547,1745291447594,-500.0,0.00047671,120]
[358588549,1745291447603,-500.0,0.00047671,120]
[358588551,1745291447612,-500.0,0.00047671,120]
[358588553,1745291447621,-500.0,0.00047671,120]
[358588555,1745291447630,-500.0,0.00047671,120]
[358588557,1745291447639,-500.0,0.00047671,120]
[358588559,1745291447648,-500.0,0.00047671,120]
[358588561,1745291447657,-500.0,0.00047671,120]
[358588563,1745291447666,-500.0,0.00047671,120]
[358588565,1745291447675,-500.0,0.00047671,120]
[358588567,1745291447687,-500.0,0.00047671,120]
[358588569,1745291447696,-500.0,0.00047671,120]
[358588571,1745291447705,-500.0,0.00047671,120]
[358588573,1745291447715,-500.0,0.00047671,120]
[358588575,1745291447724,-500.0,0.00047671,120]
[358588577,1745291447733,-500.0,0.00047671,120]
[358588579,1745291447742,-500.0,0.00047671,120]
[358588581,1745291447752,-500.0,0.00047671,120]
[358588583,1745291447761,-654.41920381,0.00047671,120]
[358588585,1745291447771,-511.49658799,0.00047673,10]
[358588587,1745291447780,-17861.57288467,0.00047675,3]
[358588590,1745291447805,-821.70436242,0.00047675,3]
[358588800,1745291528761,162.50329939,0.00042017,30]
[358588801,1745291529840,500.0,0.00047695,120]
[358588802,1745291530081,162.11602161,0.00042017,30]
[358588803,1745291530117,513.93545073,0.00047695,120]
[358588804,1745291639240,162.0,0.00043151,90]
[358588805,1745291947928,206.6,0.00043,120]
[358588806,1745292157655,968.52836894,0.00042,120]
[358588807,1745292238702,162.0,0.00043151,90]
[358588808,1745292325835,-10000.0,0.0002,2]
[358588809,1745292335596,-5000.0,0.0002,2]
[358588810,1745292344033,-2000.0,0.0002,2]
[358588811,1745292362653,-2000.0,0.000198,2]
[358588812,1745292369964,-2000.0,0.000198,2]
[358588814,1745292377256,-558.83468875,0.000198,2]
[358588815,1745292377279,-250.0,0.000199,2]
[358588816,1745292377304,-300.0,0.00019999,2]
[358588817,1745292377327,-891.16531125,0.0002,2]
[358588818,1745292385275,-2000.0,0.0002,2]
[358588819,1745292392751,-227.86693914,0.00019999,2]
[358588820,1745292393016,-176.0625165,0.00019999,2]
[358588821,1745292393041,-1596.07054436,0.0002,2]
[358588822,1745292400333,-2000.0,0.0002,2]
[358588823,1745292418761,-2000.0,0.0002,2]
[358588824,1745292424952,-2000.0,0.0002,2]
[358588825,1745292437870,217.3290146,0.00015,2]
[358588829,1745292495166,2659.03673081,0.0002,14]
[358588844,1745292631361,-1200.0,0.00019899,2]
[358588845,1745292631370,-150.65635032,0.000199,2]
[358588846,1745292631379,-3931.32627956,0.000199,2]
[358588847,1745292631388,-330.23165471,0.00019999,2]
[358588848,1745292631397,-500.0,0.00019999,2]
[358588849,1745292631406,-159.5068574,0.00019999,2]
[358588850,1745292631415,-83567.82913296,0.0002,2]
[358588851,1745292631427,-15901.18675618,0.0002,2]
[358588852,1745292631465,-1062.89247176,0.0002,2]
[358588891,1745292637774,-3166.3243872,0.000199,2]
[358588892,1745292637784,-1401243.29384975,0.0002,2]
[358588893,1745292637795,-2955771.08740354,0.0002,2]
[358589085,1745292639819,-1641.15103795,0.0002,2]
[358589087,1745292639831,-494.99605305,0.0002,2]
[358589089,1745292639843,-820.99084174,0.0002,2]
[358589204,1745292645512,-965.8,0.0002,2]
[358589205,1745292645524,-8795.556,0.0002,2]
[358589260,1745292678887,303.66,0.00026423,120]
[358589261,1745292679085,303.66,0.00029726,120]
[358589262,1745292679282,303.66,0.00033029,120]
[358589263,1745292679719,303.66,0.00036332,120]
[358589264,1745292679965,303.66,0.00039635,120]
[358589265,1745292721830,1500.0,0.00032877,120]
[358589266,1745292773289,191.8505454,0.000199,3]
[358589267,1745292792926,245.69887327,0.00042017,30]
[358589268,1745292798949,22257.55,0.00047736,30]
[358589269,1745292829355,800.0,0.000193,7]
[358589270,1745292831443,1700.0,0.000194,7]
[358589271,1745292833531,2600.0,0.000195,7]
[358589272,1745292835619,3400.0,0.000196,7]
[358589273,1745292837715,4300.0,0.000197,7]
[358589274,1745292839816,800.0,0.000198,7]
[358589275,1745292841922,800.0,0.000199,7]
[358589276,1745292841995,190.08,0.00032904,30]
[358589277,1745292842213,184.77716132,0.000372,120]
[358589278,1745292842704,190.08,0.00041619,30]
[358589279,1745292847217,184.77716132,0.000372,120]
[358589280,1745292969555,221.15915429,0.00042017,30]
[358589281,1745293077893,357.9957984,0.00042,120]
[358589282,1745293104176,10510.92033206,0.00018,2]
[358589283,1745293110267,1178.01,0.00039151,54]
[358589284,1745293110408,186.14,0.00039151,54]
[358589285,1745293150142,199.07039408,0.00042017,30]
[358589286,1745293224378,186.68,0.0001792,2]
[358589287,1745293298531,155.38,0.0004,30]
[358589288,1745293329294,179.1877977,0.00042017,30]
[358589289,1745293389900,150.0,0.00041095,120]
[358589290,1745293390168,150.0,0.00042465,120]
[358589291,1745293392090,150.0,0.00043835,120]
[358589292,1745293392339,1133.0,0.00047746,30]
[358589293,1745293393581,500.0,0.00047746,120]
[358589294,1745293393860,500.0,0.00047746,120]
[358589295,1745293394188,500.0,0.00047746,120]
[358589296,1745293394362,500.0,0.00047746,120]
[358589297,1745293488008,180.19,0.00032877,30]
[358589298,1745293509655,161.29101966,0.00042017,30]
[358589299,1745293831605,-630.24830038,0.00019889,2]
[358589300,1745293831616,-569.75169962,0.00019889,2]
[358589301,1745293831627,-4451.17830038,0.0001989,2]
[358589302,1745293831657,-1885.935,0.0001989,2]
[358589303,1745293831711,-369.23958396,0.0001989,2]
[358589304,1745293831765,-11642.35769434,0.0001989,2]
[358589305,1745293831778,-2475.883476,0.0001989,2]
[358589306,1745293831791,-818.76596324,0.0001989,2]
[358589307,1745293831803,-9778.01723529,0.0001989,2]
[358589308,1745293831812,-605.82807013,0.00019899,2]
[358589310,1745293831822,-681.6319,0.000199,2]
[358589312,1745293831831,-1000.0,0.000199,2]
[358589313,1745293831841,-166.01062444,0.000199,2]
[358589314,1745293831851,-212.977,0.000199,2]
[358589315,1745293831861,-186.90791602,0.000199,2]
[358589316,1745293831871,-630.4993,0.000199,2]
[358589317,1745293831881,-1837.3798,0.000199,2]
[358589318,1745293831890,-3040.5041,0.000199,2]
[358589319,1745293831900,-664.5333,0.000199,2]
[358589320,1745293831910,-522.5717,0.000199,2]
[358589321,1745293831920,-2688.8532,0.000199,2]
[358589322,1745293831929,-1924.6201,0.000199,2]
[358589323,1745293831939,-25403.6188,0.000199,2]
[358589324,1745293831948,-37778.35144528,0.000199,2]
[358589325,1745293831958,-1209.96818464,0.000199,2]
[358589326,1745293831968,-1232.68265572,0.000199,2]
[358589327,1745293831978,-3404.68529152,0.000199,2]
[358589328,1745293831987,-150.65635032,0.000199,2]
[358589329,1745293831997,-158.71213182,0.000199,2]
[358589330,1745293832006,-2620.88418638,0.000199,2]
[358589331,1745293832016,-350.55089011,0.00019973,2]
[358589332,1745293832026,-500.0,0.00019973,2]
[358589333,1745293832035,-241.74824093,0.00019973,2]
[358589334,1745293832045,-500.0,0.00019973,2]
[358589335,1745293832055,-283.34061264,0.0001999,2]
[358589336,1745293832064,-303.76,0.0001999,2]
[358589337,1745293832073,-303.76,0.0001999,2]
[358589338,1745293832083,-303.76,0.0001999,2]
[358589339,1745293832092,-303.76,0.0001999,2]
[358589340,1745293832104,-303.76,0.0001999,2]
[358589341,1745293832113,-303.76,0.0001999,2]
[358589342,1745293832122,-303.76,0.0001999,2]
[358589343,1745293832132,-303.76,0.0001999,2]
[358589344,1745293832141,-303.76,0.0001999,2]
[358589345,1745293832150,-303.76,0.0001999,2]
[358589346,1745293832159,-289.40138752,0.00019999,2]
[358589347,1745293832169,-372.54252947,0.00019999,2]
[358589348,1745293832178,-394.75573387,0.00019999,2]
[358589349,1745293832187,-300.0,0.00019999,2]
[358589350,1745293832200,-141637.63566259,0.0002,2]
[358589353,1745293837632,-656.67,0.0002,2]
[358589354,1745293837685,-1594.10902335,0.0002,2]
[358589355,1745293837896,-2074.10097665,0.0002,2]
[358589356,1745293837951,-1460042.52568001,0.0002,2]
[358589357,1745293837963,-2955771.08740354,0.0002,2]
[358589479,1745293840025,-550.0,0.0002,2]
[358589480,1745293840037,-2958438.74526057,0.0002,2]
[358589481,1745293840046,-2064321.40842379,0.0002,2]
[358589482,1745293840141,-309.44613349,0.0002,2]
[358589485,1745293841273,1000.0,0.00047746,30]
[358589490,1745293844200,-2000.0,0.0002,2]
[358589520,1745293848138,1000.0,0.00047746,30]
[358589521,1745293848566,1000.0,0.00047746,30]
[358589522,1745293848932,1000.0,0.00047746,30]
[358589523,1745293849378,1000.0,0.00047746,30]
[358589524,1745293849886,1000.0,0.00047746,30]
[358589525,1745293858370,1000.0,0.00047746,30]
[358589526,1745293859913,1000.0,0.00047746,30]
[358589527,1745293860503,1000.0,0.00047746,30]
[358589528,1745293861189,1000.0,0.00047746,30]
[358589529,1745293862428,1000.0,0.00047746,30]
[358589530,1745293872437,1000.0,0.00047746,30]
[358589531,1745293873476,1000.0,0.00047746,30]
[358589532,1745293874381,1000.0,0.00047746,30]
[358589533,1745293961457,1017.0,0.00047746,30]
[358589534,1745293967443,500.0,0.00047746,120]
[358589535,1745293967697,500.0,0.00047746,120]
[358589536,1745293967949,500.0,0.00047746,120]
[358589537,1745293968183,500.0,0.00047746,120]
[358589538,1745294050626,13890.22691494,0.00047745,120]
[358589539,1745294067808,158.4,0.00032904,30]
[358589540,1745294068173,158.4,0.00041619,30]
[358589541,1745294079343,5000.0,0.00047745,30]
[358589542,1745294172937,1500.0,0.00032877,120]
[358589543,1745294199604,5500.0,0.00047745,30]
[358589546,1745294250133,200.0,0.0004383,30]
[358589547,1745294296695,152.0,0.00047788,30]
[358589549,1745294310308,1444.398,0.00039187,54]
[358589550,1745294369953,186.68,0.00017177,2]
[358589552,1745294384193,500.0,0.00047788,30]
[358589553,1745294511806,200.0,0.00047788,120]
[358589554,1745294512433,200.0,0.00047788,120]
[358589555,1745294526027,201.31444589,0.00047788,120]
[358589556,1745294606760,423.88060955,0.00047788,120]
[358589557,1745294614709,420.71609819,0.00047788,120]
[358589558,1745294624417,319.80598505,0.00047788,30]
[358589559,1745294688144,500.0,0.00047788,120]
[358589572,1745294943170,161.63599294,0.00042017,30]
[358589573,1745294944646,422.0,0.00047789,30]
[358589574,1745294947845,169.45388909,0.00042017,30]
[358589575,1745294949182,168.18975774,0.00042017,30]
[358589579,1745295012771,299.99,0.0002,7]
[358589583,1745295031649,-2039.11,0.00019721,2]
[358589584,1745295031659,-303.2999,0.000198,2]
[358589585,1745295031668,-1200.0,0.00019898,2]
[358589586,1745295031678,-385.0,0.00019899,2]
[358589587,1745295031689,-191.68904492,0.000199,2]
[358589588,1745295031698,-199.7690273,0.000199,2]
[358589589,1745295031708,-144.733779,0.000199,2]
[358589590,1745295031723,-303.494121,0.000199,2]
[358589591,1745295031732,-557.33828283,0.000199,2]
[358589592,1745295031743,-410.2908405,0.000199,2]
[358589593,1745295031756,-473.1437296,0.000199,2]
[358589594,1745295031767,-2571.79212204,0.000199,2]
[358589595,1745295031778,-2646.59973272,0.000199,2]
[358589596,1745295031810,-54855.33565918,0.000199,2]
[358589597,1745295031821,-387.13222533,0.000199,2]
[358589598,1745295031863,-80647.9643647,0.000199,2]
[358589599,1745295031875,-913.70830425,0.000199,2]
[358589600,1745295031886,-461.43,0.000199,2]
[358589601,1745295031918,-5620.08083885,0.000199,2]
[358589602,1745295031927,-156.55304562,0.000199,2]
[358589603,1745295031937,-36447.12989098,0.000199,2]
[358589604,1745295031948,-169.09616553,0.000199,2]